[Event "Hungarian Championship Women 2022"]
[Site "Budapest"]
[Date "2022.12.11"]
[Round "7.1"]
[White "Szente Varga, Fruzsina"]
[Black "Terbe, Zsuzsanna"]
[Result "0-1"]
[ECO "B06"]
[WhiteElo "2075"]
[BlackElo "2114"]
[Annotator "TA"]
[PlyCount "80"]
[EventDate "2022.12.03"]
[EventType "tourn"]
[EventCountry "HUN"]
[SourceTitle "playchess.com"]
[Source "ChessBase"]
[SourceQuality "1"]
[TimeControl "40/5400+30:1800+30"]

{[%evp 9,80,47,41,18,18,13,28,-19,-14,-44,-41,-35,-43,-53,-43,-44,-33,-39,-41,-35,0,-92,-72,-59,-65,-74,-72,-80,-67,-123,-114,-137,-137,-169,-172,-216,-71,-53,-45,-180,-155,-184,-176,-187,-136,-229,-225,-270,-264,-284,-287,-343,-239,-247,-214,-218,-188,-338,-315,-526,-365,-403,-324,-841,-238,-346,-311,-29977,-29977,-29986,-29987,-29985,-29988]} 1. e4 {[%emt 0:00:33]} g6 {[%emt 0:00:37]} 2. d4 {[%emt 0:00:09]} Bg7 {[%emt 0:00:06]} 3. Nc3 {[%emt 0:00:35]} d6 {[%emt 0:00:11]} 4. Be3 {[%emt 0:00:44]} a6 {[%emt 0:00:07]} 5. f4 {[%emt 0:05:10]} b5 {[%emt 0:00:48]} 6. a3 {[%emt 0:02:22] B06: Modern Defence.} Nd7 {[%emt 0:02:44]} 7. Be2 {[%emt 0:01:42]} Bb7 {[%emt 0:05:45]} 8. Nf3 {[%emt 0:02:28]} (8. Bf3 {might be stronger.}) 8... c5 {[%emt 0:04:16]} 9. O-O {[%emt 0:06:18]} (9. dxc5 {simplifies} Bxc3+ 10. bxc3 Nxc5 11. Bxc5 dxc5 12. Qxd8+ Rxd8 13. e5) 9... Ngf6 {[%emt 0:04:57]} 10. Ng5 {[%emt 0:13:06]} cxd4 {[%emt 0:23:03]} 11. Bxd4 {[%emt 0:00:14] aiming for e5.} e5 {[%emt 0:00:18]} 12. Be3 {[%emt 0:01:55] [#]} h6 $146 {[%emt 0:01:22]} ({Predecessor:} 12... exf4 13. Rxf4 Ne5 14. Nd5 Nxd5 15. exd5 Qxg5 16. Qd2 Qe7 17. Raf1 O-O 18. Re4 f5 19. Rb4 Rac8 20. b3 Rfe8 21. a4 Nf7 {0-1 (21) Azimova,K (2072)-Arakhamia Grant,K (2374) Riga 2017}) 13. Nh3 {[%emt 0:02:44]} Qc7 {[%emt 0:03:49]} 14. Nf2 {[%emt 0:05:33]} Rd8 {[%emt 0:04:55]} (14... O-O {simplifies} 15. Qd2 Rad8 16. fxe5 dxe5 17. Bxh6 Nc5) 15. Bxb5 {[%emt 0:16:52]} axb5 $17 {[%emt 0:00:26]} 16. Nxb5 {[%emt 0:00:04]} Qc6 {[%emt 0:00:23]} 17. Nxd6+ {[%emt 0:00:03]} Ke7 {[%emt 0:00:23]} 18. Nxb7 {[%emt 0:01:36]} Qxb7 {[%emt 0:00:04]} 19. b4 {[%emt 0:02:15]} (19. Qd3 $15) 19... Nxe4 {[%emt 0:05:02]} 20. Nxe4 {[%emt 0:03:59]} Qxe4 {[%emt 0:00:07]} 21. Re1 {[%emt 0:00:09][%cal Oe3b6]} Qc4 {[%emt 0:02:22]} 22. Rb1 {[%emt 0:10:40]} Ra8 {[%emt 0:03:32]} (22... e4 $19 {is more deadly. ...f5 is the strong threat.} 23. Qe2 Qxe2 24. Rxe2 Rc8) 23. fxe5 {[%emt 0:00:44][%cal Oe3c5]} Bxe5 {[%emt 0:01:02]} (23... Rhd8 {feels hotter.} 24. Rb3 Nxe5 25. Bc5+ Ke8) 24. Bd4 {[%emt 0:06:34] [#] This costs White the game.} (24. Bc5+ $2 Nxc5 25. Rxe5+ Ne6 $19) (24. Rb3 $1 $15 f6 25. Rd3) 24... f6 $1 $19 {[%emt 0:00:50]} (24... Qe6 25. b5 $17) 25. Rb3 {[%emt 0:04:40]} Kf7 {[%emt 0:04:56]} 26. Rd3 {[%emt 0:01:23] [#] Threatens to win with Bxe5.} Rhe8 {[%emt 0:00:58]} ({Black should try} 26... Qc7 $1 $19 27. Rc3 Bxd4+ 28. Qxd4 Qa7 29. Qxa7 Rxa7) 27. Bf2 {[%emt 0:00:33]} (27. Ba1 $17 Kf8 28. Rf1 (28. Rxd7 $2 Bxh2+ 29. Kh1 Bg3 $19) 28... Bxa1 29. Qxa1) 27... Nf8 {[%emt 0:00:44][%cal Bd7f8,Bf8e6,Be6g5,Bg5e4,Be4g3,Bg3e2][%mdl 32]} 28. Rf1 {[%emt 0:03:41]} Ne6 {[%emt 0:04:25] Against Bd4} (28... Qf4 29. Bg3 Qc4 30. Bxe5 Rxe5 31. Qa1 $17 (31. Qf3 $2 Ra6 $19)) 29. Qf3 {[%emt 0:02:02]} Rac8 {[%emt 0:04:37]} (29... Qxc2 $2 30. Bg3 Bb2 31. Qe4 $19) 30. Bg3 {[%emt 0:02:05]} Ng5 {[%emt 0:00:38]} 31. Qd1 {[%emt 0:01:42]} Bxg3 {[%emt 0:02:26]} (31... Qxc2 $2 32. Rd7+ Kg8 33. Bxe5 Qxd1 34. Rdxd1 fxe5 35. Rd6) 32. hxg3 {[%emt 0:01:08]} Re7 {[%emt 0:02:44]} (32... Qxc2 33. Rd7+ Kg8 34. Qd5+ Kh8 35. Qd4 $15) 33. Rd6 {[%emt 0:01:37]} (33. Rd7 $142) 33... Ne4 {[%emt 0:01:27]} (33... Qxc2 34. Rfxf6+ Kg7 35. Rxg6+ (35. Qxc2 Rxc2 36. Rxg6+ Kf8 $17) 35... Qxg6 36. Rxg6+ Kxg6 37. b5 $11) 34. Rb6 {[%emt 0:00:11]} (34. Rd7 {is a better defense.}) 34... Rcc7 {[%emt 0:01:42][%cal Oc7d7]} 35. Kh2 {[%emt 0:00:28]} Rc6 {[%emt 0:02:40]} (35... Qxc2 $2 36. Qd4 Qc3 37. Qxc3 Rxc3 38. a4 $19) 36. Rb8 {[%emt 0:00:15]} (36. Rxc6 Qxc6 37. Rf4) 36... Rce6 $2 {[%emt 0:02:25]} (36... Qxc2 37. Qd8 f5 38. Qf8+ Ke6 39. g4 $11 (39. Qxh6 Kd5 $17) (39. Re1 $2 Qd3 $19)) (36... Rd6 37. Qe1 Nd2 38. Rxf6+ Kxf6 39. Qf2+ Kg5) 37. Rf4 {[%emt 0:01:22]} (37. Qd8 $142 Re8 38. Rb7+ R6e7 39. Qd3) 37... Qc7 {[%emt 0:00:44]} 38. Rd8 {[%emt 0:00:21] [#]} (38. Qd8 $19 Qxd8 39. Rxd8) 38... Nxg3 $1 {[%emt 0:02:00][%mdl 512] Black mates.} 39. Rdd4 {[%emt 0:01:21]} (39. Kxg3 Re3+) 39... Ne2 {[%emt 0:01:02]} 40. Rc4 {[%emt 0:00:00]} Qb8 {[%emt 0:00:00] Weighted Error Value: White=0.67/Black=0.38} 0-1

[Event "Hungarian Championship Women 2022"]
[Site "Budapest"]
[Date "2022.12.11"]
[Round "7.2"]
[White "Erdos, Boglarka"]
[Black "Mihok-Juhasz, Barbara"]
[Result "1-0"]
[ECO "B30"]
[WhiteElo "2180"]
[BlackElo "2206"]
[Annotator "TA"]
[PlyCount "67"]
[EventDate "2022.12.03"]
[EventType "tourn"]
[EventCountry "HUN"]
[SourceTitle "playchess.com"]
[Source "ChessBase"]
[SourceQuality "1"]
[TimeControl "40/5400+30:1800+30"]

{[%evp 9,67,51,60,60,55,36,57,32,41,4,34,29,35,-9,-13,-20,0,-35,-38,-52,-43,-66,-71,-65,-63,-88,-60,-90,-84,-102,-86,-105,-114,-170,-125,-183,-190,-221,-222,-217,-208,-253,-245,-307,-264,-301,-277,-296,-301,-360,-336,-389,-381,-400,-366,-334,-111,-92,625,652]} 1. e4 {[%emt 0:00:33]} c5 {[%emt 0:00:55]} 2. Nf3 {[%emt 0:00:06]} Nc6 {[%emt 0:00:05]} 3. Bb5 {[%emt 0:00:12]} Na5 {[%emt 0:00:13]} 4. O-O {[%emt 0:00:58]} a6 {[%emt 0:00:27]} 5. Be2 {[%emt 0:00:18]} e6 {[%emt 0:00:12]} 6. d4 {[%emt 0:05:20] B30: Sicilian: 2...Nc6 3 Bb5, lines without ...g6.} cxd4 {[%emt 0:00:07]} 7. Nxd4 {[%emt 0:00:51]} Qc7 {[%emt 0:00:22]} 8. Nc3 {[%emt 0:05:19] White is slightly better.} Nf6 {[%emt 0:07:34]} 9. a3 {[%emt 0:07:40] [#]} d6 $146 {[%emt 0:14:30]} ({Predecessor:} 9... b5 10. f4 Bb7 11. e5 Nd5 12. Ne4 Be7 13. Kh1 Nc4 14. Qd3 f5 15. exf6 Nxf6 {1-0 (26) Madol,G (1851)-Yuot Mabut,D (2010) Juba 2022}) 10. Qd3 {[%emt 0:06:51]} Bd7 {[%emt 0:06:34]} 11. b3 {[%emt 0:14:31]} Rc8 {[%emt 0:00:43]} 12. Bd2 {[%emt 0:01:09]} Nc6 {[%emt 0:01:45]} (12... Be7 {keeps more tension.} 13. Qg3 O-O 14. Bd3 Nc6) 13. Rae1 {[%emt 0:05:44]} Be7 {[%emt 0:24:33]} 14. Nxc6 {[%emt 0:05:51]} Bxc6 {[%emt 0:01:41]} 15. Bd1 {[%emt 0:00:32]} O-O {[%emt 0:01:29]} 16. Qg3 {[%emt 0:04:16]} Rfd8 {[%emt 0:02:40]} (16... b5 {seems wilder.} 17. Bh6 Ne8 18. Nb1 Bb7) 17. h4 {[%emt 0:08:38]} Kh8 {[%emt 0:02:45]} 18. Kh1 {[%emt 0:09:52]} b5 {[%emt 0:02:55]} 19. f3 {[%emt 0:01:17]} Rd7 {[%emt 0:05:59]} 20. Na2 {[%emt 0:03:02]} Bb7 {[%emt 0:01:06]} 21. Qf2 {[%emt 0:03:37]} (21. Nb4 $17 {was worth a try.}) 21... Qd8 {[%emt 0:07:00]} 22. g3 {[%emt 0:00:36]} (22. Nc1 $17 {was necessary.}) 22... e5 $19 {[%emt 0:02:08]} 23. Nb4 {[%emt 0:06:47]} d5 {[%emt 0:01:04]} 24. exd5 {[%emt 0:00:26]} Nxd5 {[%emt 0:02:31]} 25. Nd3 {[%emt 0:01:04]} f6 {[%emt 0:00:08]} (25... Bxa3 26. Rxe5 Bd6 27. Re2 $17) 26. h5 {[%emt 0:03:28]} Nc3 {[%emt 0:01:06]} 27. Bxc3 {[%emt 0:00:23]} Rxc3 {[%emt 0:00:04]} 28. h6 {[%emt 0:01:02]} g6 {[%emt 0:00:21]} (28... gxh6 $2 29. Qd2 Rcc7 30. b4) 29. Qe2 {[%emt 0:03:16][%cal Od3e5]} Qc7 {[%emt 0:01:14]} 30. Kg2 {[%emt 0:00:40]} Bf8 {[%emt 0:01:13]} (30... Bxa3 $2 {loses.} 31. Rh1 $19) 31. Rh1 {[%emt 0:00:50]} Rd4 {[%emt 0:04:30]} (31... Bxa3 $2 {perishes.} 32. g4 $19) 32. Qf2 {[%emt 0:00:24]} Bc5 $2 {[%emt 0:01:51]} ({Don't take} 32... Bxa3 {[#]} 33. Qxd4 $3 {[%mdl 512]} Bd6 34. Qf4 $3 $18 {[%mdl 512]}) (32... a5 $19 {Hoping for ...a4.} 33. Rh4 Rxh4 34. gxh4 Bxh6) 33. Nxc5 $17 {[%emt 0:00:26]} Rxc5 {[%emt 0:01:28][%mdl 8192] [#]} (33... Qxc5 $17 34. Re3 Rxe3 35. Qxe3 Qxa3) 34. Qxd4 $3 {[%emt 0:00:38][%mdl 512] What a bad dream for Black.   Weighted Error Value: White=0.25 (precise) /Black=0.38} 1-0

[Event "Hungarian Championship Women 2022"]
[Site "Budapest"]
[Date "2022.12.11"]
[Round "7.3"]
[White "Terbe, Julianna"]
[Black "Karacsonyi, Kata"]
[Result "1/2-1/2"]
[ECO "A05"]
[WhiteElo "2282"]
[BlackElo "2109"]
[Annotator "TA"]
[PlyCount "73"]
[EventDate "2022.12.03"]
[EventType "tourn"]
[EventCountry "HUN"]
[SourceTitle "playchess.com"]
[Source "ChessBase"]
[SourceQuality "1"]
[TimeControl "40/5400+30:1800+30"]

{[%evp 19,73,8,22,21,29,8,13,0,39,31,57,41,69,66,72,64,68,0,0,0,0,0,13,13,16,13,10,11,10,10,13,9,9,12,8,1,4,10,13,1,4,5,5,0,13,0,6,5,10,1,2,-7,0,0,0,-39]} 1. Nf3 {[%emt 0:00:35]} Nf6 {[%emt 0:00:42]} 2. c4 {[%emt 0:00:10]} e6 {[%emt 0:00:20]} 3. g3 {[%emt 0:00:43]} b6 {[%emt 0:01:48]} 4. Bg2 {[%emt 0:00:10]} Bb7 {[%emt 0:00:14]} 5. O-O {[%emt 0:00:16]} Be7 {[%emt 0:01:08]} 6. Nc3 {[%emt 0:01:59]} O-O {[%emt 0:01:25]} 7. Re1 {[%emt 0:00:05]} d5 {[%emt 0:04:32]} 8. cxd5 {[%emt 0:01:20]} exd5 {[%emt 0:02:11]} 9. d4 {[%emt 0:00:06]} Nbd7 {[%emt 0:01:37][%cal Bb8d7,Bd7f6,Bf6g4,Bg4e5,Be5c4][%mdl 32]} 10. Bf4 {[%emt 0:00:35]} c5 {[%emt 0:05:56]} 11. Rc1 {[%emt 0:00:07] E17: Queen's Indian: 4 g3 Bb7 5 Bg2 Be7.} Ne4 {[%emt 0:02:59]} 12. a3 {[%emt 0:07:50]} Ndf6 {[%emt 0:06:48]} (12... Nxc3 {simplifies} 13. Rxc3 Re8 14. dxc5 bxc5 15. e4 dxe4 16. Nd2 Nf6) 13. dxc5 {[%emt 0:08:04] Hoping for Nxe4.} (13. Ne5 {simplifies} Nxc3 14. Rxc3 a5 15. Rc1) 13... Bxc5 {[%emt 0:15:40]} 14. Nd4 {[%emt 0:02:29] [#]} Ng4 $146 {[%emt 0:11:07]} ({Predecessor:} 14... Nxc3 15. Rxc3 Ne4 16. Rc1 Qf6 17. Be3 a5 18. Qa4 Rfe8 19. Red1 h5 20. Qd7 Re7 {1-0 (41) Labollita,M (2454)-Rosito,J (2426) Tres de Febrero 2003}) 15. f3 {[%emt 0:22:35][%csl LRe4,LRg4]} Nxc3 {[%emt 0:19:12]} 16. Rxc3 {[%emt 0:01:58] Dancing on a razor blade.} Qf6 {[%emt 0:01:28]} ({Not} 16... g5 17. fxg4 gxf4 18. gxf4 $16) 17. e3 {[%emt 0:05:00]} Ne5 {[%emt 0:01:04]} 18. g4 {[%emt 0:05:35]} (18. b4 $14 Bd6 19. Bxe5 Qxe5 20. f4) 18... Nc4 $11 {[%emt 0:05:52] [#] Strongly threatening ...g5. The position is equal.} 19. b4 {[%emt 0:16:49] Prevents g5.} Bxd4 {[%emt 0:02:10]} 20. Qxd4 {[%emt 0:00:06]} Qxd4 {[%emt 0:00:06]} 21. exd4 {[%emt 0:00:04]} Rfe8 {[%emt 0:00:30]} 22. Rxe8+ {[%emt 0:03:33]} Rxe8 {[%emt 0:00:02]} 23. Kf2 {[%emt 0:00:08]} b5 {[%emt 0:02:50]} 24. h4 {[%emt 0:02:11]} f6 {[%emt 0:03:06]} 25. Bf1 {[%emt 0:01:56]} Bc6 {[%emt 0:00:53]} 26. Bd3 {[%emt 0:03:35]} g6 {[%emt 0:00:38]} 27. Rc2 {[%emt 0:02:31]} a6 {[%emt 0:02:26]} 28. h5 {[%emt 0:03:21]} Kg7 {[%emt 0:02:17]} 29. Rc1 {[%emt 0:05:01]} Bd7 {[%emt 0:02:28]} 30. Rh1 {[%emt 0:02:07]} Be6 {[%emt 0:00:41]} 31. Ra1 {[%emt 0:03:03]} (31. hxg6 {simplifies} hxg6 32. Bh6+ Kf7 33. Bc1) 31... Bd7 {[%emt 0:00:38]} 32. Rh1 {[%emt 0:00:40]} Be6 {[%emt 0:00:06]} 33. hxg6 {[%emt 0:00:16]} hxg6 {[%emt 0:00:03]} 34. Re1 {[%emt 0:00:16]} Bf7 {[%emt 0:01:21]} 35. Ra1 {[%emt 0:00:24]} Rc8 {[%emt 0:01:06]} 36. Be2 {[%emt 0:01:41]} Nb2 {[%emt 0:00:49]} 37. Rb1 {[%emt 0:00:48] Weighted Error Value: White=0.09 (flawless) /Black=0.07 (flawless)} 1/2-1/2

[Event "Hungarian Championship Women 2022"]
[Site "Budapest"]
[Date "2022.12.11"]
[Round "7.4"]
[White "Ivan-Gal, Hanna Krisztina"]
[Black "Demeter, Dorina"]
[Result "1/2-1/2"]
[ECO "C64"]
[WhiteElo "2164"]
[BlackElo "2149"]
[Annotator "TA"]
[PlyCount "73"]
[EventDate "2022.12.03"]
[EventType "tourn"]
[EventCountry "HUN"]
[SourceTitle "playchess.com"]
[Source "ChessBase"]
[SourceQuality "1"]
[TimeControl "40/5400+30:1800+30"]

{[%evp 10,73,47,31,47,46,41,0,0,0,-5,-31,-38,-32,0,0,0,0,0,-25,-10,-18,0,-11,8,8,8,10,10,0,0,0,0,0,6,0,11,0,0,0,0,0,11,-28,0,-5,0,0,88,87,66,0,18,0,0,0,0,0,0,0,0,0,0,0,0,0]} 1. e4 {[%emt 0:00:31]} e5 {[%emt 0:00:36]} 2. Nf3 {[%emt 0:00:09]} Nc6 {[%emt 0:00:11]} 3. Bb5 {[%emt 0:00:10]} Bc5 {[%emt 0:00:18]} 4. O-O {[%emt 0:00:20]} d6 {[%emt 0:00:16]} 5. c3 {[%emt 0:00:49]} a6 {[%emt 0:01:29]} 6. Ba4 {[%emt 0:00:55]} Bd7 {[%emt 0:04:27] C70: Ruy Lopez: 3...a6 4 Ba4, Norwegian and Delayed Schliemann.} 7. d4 {[%emt 0:03:06]} Ba7 $1 {[%emt 0:01:39][%mdl 4] outshines the older 7...exd4.} 8. dxe5 {[%emt 0:12:23]} Nxe5 {[%emt 0:07:32] [#]} 9. Bxd7+ $146 {[%emt 0:08:22]} ({Predecessor:} 9. Nxe5 dxe5 10. Bxd7+ Qxd7 11. Qxd7+ Kxd7 12. Rd1+ Ke6 13. Kf1 Ne7 14. Na3 Rad8 15. Rxd8 Rxd8 {½-½ (51) Caicedo Solano,E (1842)-Virviescas Sanchez,C (1610) Bucaramanga 2022}) 9... Qxd7 {[%emt 0:00:54]} 10. Bf4 {[%emt 0:04:35]} Ng6 {[%emt 0:08:41]} (10... f6 {with more complications.} 11. b4 O-O-O 12. Nbd2 g5) 11. Bg3 {[%emt 0:00:58]} h5 {[%emt 0:05:12] [#] aiming for ...h4.} 12. h3 $1 {[%emt 0:04:13]} Nf6 {[%emt 0:02:22]} 13. Nbd2 {[%emt 0:04:44]} O-O-O {[%emt 0:07:54]} 14. Nd4 {[%emt 0:07:23]} h4 {[%emt 0:17:00]} 15. Bh2 {[%emt 0:00:11]} Ne5 {[%emt 0:01:06]} 16. N2f3 {[%emt 0:17:29]} Nxe4 {[%emt 0:06:31]} (16... Rde8 {simplifies} 17. Re1 Nxf3+ 18. Qxf3 d5) 17. Bxe5 {[%emt 0:01:10]} ({Much worse is} 17. Nxe5 dxe5 18. Bxe5 Rhe8 $17) 17... dxe5 {[%emt 0:00:41]} 18. Nxe5 {[%emt 0:00:09]} Qd5 {[%emt 0:04:34]} 19. Qg4+ {[%emt 0:04:39]} Kb8 {[%emt 0:00:46]} 20. Nxf7 {[%emt 0:02:00]} Qxf7 {[%emt 0:04:24]} 21. Qxe4 {[%emt 0:00:11]} Bxd4 {[%emt 0:04:44]} 22. cxd4 {[%emt 0:00:05]} Qd5 {[%emt 0:00:21]} 23. Qc2 {[%emt 0:03:52]} (23. Qxd5 {simplifies} Rxd5 24. Rae1 Rxd4 25. Re7) 23... Qxd4 {[%emt 0:01:32]} 24. Rac1 {[%emt 0:00:26][%cal Ba1c1,Bc1c2,Bc2c4][%mdl 32]} Qf4 {[%emt 0:03:30]} 25. Qg6 {[%emt 0:03:10]} Rhf8 {[%emt 0:04:53]} 26. Rc2 {[%emt 0:01:57]} Rd5 {[%emt 0:05:55]} 27. b3 {[%emt 0:03:55]} Rg5 {[%emt 0:02:40]} (27... Qe5 {simplifies} 28. Rc4 Rd4 29. Rxd4 Qxd4 30. Qc2 g5) 28. Qd3 {[%emt 0:00:03]} c6 {[%emt 0:01:43]} (28... Qf6 $11 {keeps the balance.}) 29. Rc4 $16 {[%emt 0:00:53]} Qf6 {[%emt 0:00:36]} 30. Qe4 {[%emt 0:03:29]} ({White should try} 30. Rxh4 $14 Rd8 31. Qc4) 30... Rh8 {[%emt 0:02:19] The position is equal.} 31. Rd4 {[%emt 0:02:30]} (31. Qf4+ {simplifies} Qxf4 32. Rxf4 Ra5 33. a4) 31... Re5 {[%emt 0:00:29]} 32. Qd3 {[%emt 0:00:29]} Rhe8 {[%emt 0:00:31]} 33. Rd6 {[%emt 0:01:49]} Qf4 {[%emt 0:00:19]} 34. Rd4 {[%emt 0:03:55]} Qf6 {[%emt 0:00:11]} 35. Rd6 {[%emt 0:00:15]} Qf4 {[%emt 0:00:05]} 36. Rd4 {[%emt 0:00:31]} Qf6 {[%emt 0:00:03]} 37. Rd6 {[%emt 0:01:02] Weighted Error Value: White=0.09 (flawless) /Black=0.11 (very precise)} 1/2-1/2

[Event "Hungarian Championship Women 2022"]
[Site "Budapest"]
[Date "2022.12.11"]
[Round "7.5"]
[White "Dudas, Eszter"]
[Black "Havanecz, Bianka"]
[Result "1/2-1/2"]
[ECO "B13"]
[WhiteElo "2135"]
[BlackElo "2210"]
[Annotator "TA"]
[PlyCount "86"]
[EventDate "2022.12.03"]
[EventType "tourn"]
[EventCountry "HUN"]
[SourceTitle "playchess.com"]
[Source "ChessBase"]
[SourceQuality "1"]
[TimeControl "40/5400+30:1800+30"]

{[%evp 9,86,0,21,3,4,6,8,6,18,15,12,10,15,10,9,0,20,25,36,8,12,15,56,0,0,0,0,0,0,0,0,0,0,0,0,0,27,43,83,72,83,77,81,75,86,72,89,91,91,44,41,0,84,80,82,42,43,45,69,58,83,73,114,139,175,85,71,0,0,0,0,0,0,0,0,0,0,0,0]} 1. e4 {[%emt 0:00:33]} c6 {[%emt 0:00:35]} 2. d4 {[%emt 0:00:21]} d5 {[%emt 0:00:06]} 3. exd5 {[%emt 0:00:26]} cxd5 {[%emt 0:00:05]} 4. Nf3 {[%emt 0:00:15]} Nc6 {[%emt 0:00:13]} 5. Ne5 {[%emt 0:00:53]} Nf6 {[%emt 0:00:19]} 6. Bb5 {[%emt 0:00:39] B13: Caro-Kann: Exchange Variation and Panov-Botvinnik Attack.} Bd7 {[%emt 0:00:29]} 7. Nxd7 {[%emt 0:00:25]} Qxd7 {[%emt 0:00:07]} 8. c3 {[%emt 0:02:18]} e6 {[%emt 0:00:11]} 9. Nd2 {[%emt 0:01:04]} Bd6 {[%emt 0:00:28]} 10. O-O {[%emt 0:00:56]} O-O {[%emt 0:00:06]} 11. Re1 {[%emt 0:01:49]} a6 {[%emt 0:00:15]} 12. Bd3 {[%emt 0:01:20]} b5 {[%emt 0:00:11]} 13. Nf3 {[%emt 0:03:10]} Qc7 {[%emt 0:06:09]} 14. g3 {[%emt 0:04:28]} b4 {[%emt 0:00:49]} 15. Bg5 {[%emt 0:07:41]} Nd7 {[%emt 0:02:51] [#]} 16. Qc2 $146 {[%emt 0:00:28]} (16. c4 $14) ({Predecessor:} 16. c4 dxc4 17. Bxc4 Na5 18. Bd3 Nb6 19. Qe2 Qb7 20. Rac1 Rfc8 21. Rxc8+ Qxc8 22. Qe4 {1-0 (29) Ramoutar,A (2445)-Magold,F (2244) Arad 2022}) 16... h6 $11 {[%emt 0:04:52]} 17. Be3 {[%emt 0:02:58]} bxc3 {[%emt 0:00:38]} 18. bxc3 {[%emt 0:00:20]} Rfc8 {[%emt 0:00:18][%cal Oc6b4]} 19. Qe2 {[%emt 0:03:44]} a5 {[%emt 0:07:49]} 20. a4 {[%emt 0:00:31]} Ne7 {[%emt 0:00:59]} 21. Rec1 {[%emt 0:11:05]} Nb6 {[%emt 0:00:42]} 22. Nd2 {[%emt 0:09:57]} Kh8 {[%emt 0:13:26]} 23. Qf3 {[%emt 0:06:49]} Ng8 {[%emt 0:00:55]} 24. c4 {[%emt 0:00:15]} dxc4 {[%emt 0:02:27]} 25. Nxc4 {[%emt 0:00:23]} Nxc4 {[%emt 0:00:12]} 26. Bxc4 {[%emt 0:00:38]} Qe7 {[%emt 0:00:52]} 27. d5 $1 {[%emt 0:10:41]} e5 {[%emt 0:01:26]} 28. Bb5 {[%emt 0:00:22]} Rf8 {[%emt 0:03:00]} 29. Bc6 {[%emt 0:03:00] Prevents f5. White is more active.} ({White should try} 29. Rc6 $16) 29... Rab8 {[%emt 0:00:13]} 30. Bd2 {[%emt 0:03:05] A strong pair of Bishops.} (30. Qf5 {feels hotter.} Nf6 31. Re1 g6 32. Qc2) 30... Bb4 {[%emt 0:01:23]} (30... f5 $11) 31. Bxb4 $16 {[%emt 0:00:07]} Rxb4 {[%emt 0:00:20]} 32. Rd1 {[%emt 0:00:32] Black must now prevent d6.} (32. Qe3 {is interesting.} Rc8 33. Rc5 Rb3 34. Qxb3 Qxc5 35. Qb5) 32... Qd6 {[%emt 0:00:20]} 33. Rab1 {[%emt 0:01:34]} Rxb1 {[%emt 0:09:26]} 34. Rxb1 {[%emt 0:01:09]} f5 {[%emt 0:00:06] [#]} 35. Qc3 $1 {[%emt 0:03:42]} f4 {[%emt 0:00:35]} 36. Qxa5 {[%emt 0:02:54]} Ne7 {[%emt 0:04:05] [#]} 37. Qb4 {[%emt 0:04:43]} (37. Bb7 $1 $18 {and White stays clearly on top.}) 37... Qf6 {[%emt 0:00:35]} 38. Qb2 {[%emt 0:10:52]} (38. Qb6 $16) 38... Nxc6 $11 {[%emt 0:01:45] The position is equal.} 39. dxc6 {[%emt 0:00:05]} Qxc6 {[%emt 0:00:12]} 40. Qxe5 {[%emt 0:00:00] Hoping for a5.} Qxa4 {[%emt 0:00:00]} 41. gxf4 {[%emt 0:12:11]} Rxf4 {[%emt 0:12:47] aiming for ...Rg4+.} 42. Qd5 {[%emt 0:01:11]} Rg4+ {[%emt 0:01:53]} 43. Kh1 {[%emt 0:00:57]} Qe4+ {[%emt 0:02:09] Weighted Error Value: White=0.12 (very precise) /Black=0.11 (very precise)} 1/2-1/2